bitfinex/quotes_SOLUSD_20241213
["timestamp","ask_amount","ask_price","bid_price","bid_amount"]
[1734078870279,11.0554,226.14,226.04,8.31837761]
[1734078870485,8.31837761,226.11,226.05,8.31837761]
[1734078871301,8.31837761,226.11,226.04,8.31837761]
[1734078871594,8.31837761,226.09,226.03,8.31837761]
[1734078873885,8.31837761,226.1,226.03,8.31837761]
[1734078874468,8.31837761,226.11,226.04,8.31837761]
[1734078875298,8.31837761,226.13,226.06,8.31837761]
[1734078875610,8.31837761,226.14,226.08,8.31837761]
[1734078876773,8.31837761,226.15,226.08,8.31837761]
[1734078876978,8.31837761,226.14,226.08,8.31837761]
[1734078877174,8.31837761,226.14,226.07,8.31837761]
[1734078877401,8.31837761,226.13,226.07,8.31837761]
[1734078877696,8.31837761,226.12,226.06,8.31837761]
[1734078877889,8.31837761,226.12,226.05,8.31837761]
[1734078878401,8.31837761,226.1,226.03,6.5466]
[1734078878891,8.31837761,226.07,226.01,8.40171655]
[1734078879101,8.31837761,226.06,226.01,1.5147]
[1734078879271,8.31837761,226.06,226.0,8.31837761]
[1734078880793,8.31837761,226.06,225.99,8.31837761]
[1734078883299,8.31837761,226.06,226.0,8.31837761]
[1734078883496,8.31837761,226.07,226.01,8.31837761]
[1734078883711,28.31837761,226.08,226.01,8.31837761]
[1734078885319,20.0,226.08,226.03,8.31837761]
[1734078885492,8.31837761,226.1,226.03,8.31837761]
[1734078887716,8.31837761,226.09,226.03,8.31837761]
[1734078888618,8.31837761,226.09,225.98,13.52661655]
[1734078888619,8.31837761,226.09,226.02,8.31837761]
[1734078889420,8.31837761,226.09,226.03,8.31837761]
[1734078890706,8.31837761,226.1,226.04,8.31837761]
[1734078892481,8.31837761,226.08,226.01,8.31837761]
[1734078892696,8.31837761,226.05,225.99,6.88701655]
[1734078892883,8.31837761,226.03,225.98,6.6396]
[1734078893285,8.31837761,226.05,225.98,14.95797761]
[1734078899812,8.31837761,226.04,225.98,14.95797761]
[1734078900401,8.31837761,226.04,225.98,6.6396]
[1734078904716,20.0,226.06,225.98,6.6396]
[1734078904900,8.31837761,226.04,225.98,6.6396]
[1734078906301,8.31837761,226.03,225.98,6.6396]
[1734078906910,8.31837761,226.04,225.98,6.6396]
[1734078907625,8.31837761,226.04,225.98,14.95797761]
[1734078908133,8.31837761,226.04,225.98,6.6396]
[1734078908511,8.31837761,226.04,225.98,14.95797761]
[1734078908703,8.31837761,226.03,225.98,6.6396]
[1734078908906,8.31837761,226.03,225.96,9.92127761]
[1734078909313,8.31837761,226.03,225.96,1.6029]
[1734078909527,31.0593,226.06,225.96,1.6029]
[1734078909528,8.31837761,226.02,225.96,1.6029]
[1734078909910,8.31837761,226.01,225.96,1.6029]
[1734078910117,8.31837761,226.01,225.94,8.31837761]
[1734078911723,8.31837761,226.01,225.93,6.6162]
[1734078912013,8.31837761,226.01,225.95,8.31837761]
[1734078913231,8.31837761,226.02,225.95,8.31837761]
[1734078913622,21.5983,226.09,225.98,8.31837761]
[1734078913826,11.0573,226.1,226.02,8.31837761]
[1734078914025,11.0573,226.1,226.03,8.31837761]
[1734078914353,8.31837761,226.1,226.03,8.31837761]
[1734078916729,8.31837761,226.1,226.04,8.31837761]
[1734078918449,20.0,226.1,226.04,8.31837761]
[1734078918636,1.5081,226.15,226.0,0.66354723]
[1734078918870,8.31837761,226.16,226.09,8.31837761]
[1734078919877,1.6327,226.2,226.11,8.31837761]
[1734078920152,8.31837761,226.17,226.11,8.31837761]
[1734078920324,8.31837761,226.17,226.1,8.31837761]
[1734078921540,8.31837761,226.16,226.1,8.31837761]
[1734078922724,20.0,226.18,226.1,8.31837761]
[1734078923123,8.31837761,226.16,226.1,8.31837761]
[1734078923740,20.0,226.18,226.1,8.31837761]
[1734078923936,8.31837761,226.16,226.1,8.31837761]
[1734078924338,8.31837761,226.16,226.09,8.31837761]
[1734078925737,8.31837761,226.16,226.1,8.31837761]
[1734078926864,8.31837761,226.17,226.1,8.31837761]
[1734078928957,20.0,226.18,226.1,8.31837761]
[1734078929462,8.31837761,226.17,226.1,8.31837761]
[1734078930146,8.31837761,226.16,226.1,8.31837761]
[1734078931228,8.31837761,226.11,226.02,6.1832]
[1734078931428,8.31837761,226.16,226.02,6.1832]
[1734078931429,8.31837761,226.07,226.02,6.1832]
[1734078932041,30.0,226.06,226.02,14.50157761]
[1734078934338,30.0,226.06,226.02,6.1832]
[1734078934953,30.0,226.06,226.02,14.50157761]
[1734078936345,30.0,226.06,226.02,6.1832]
[1734078936750,30.0,226.06,226.02,14.50157761]
[1734078936954,30.0,226.06,226.03,8.31837761]
[1734078939546,30.0,226.06,226.02,6.1832]
[1734078941548,30.0,226.06,226.02,14.50157761]
[1734078944359,30.0,226.06,226.03,8.31837761]
[1734078945264,30.0,226.06,226.04,8.31837761]
[1734078945461,30.0,226.06,226.05,8.31837761]
[1734078946966,8.31837761,226.14,226.05,8.31837761]
[1734078947265,8.31837761,226.14,226.07,8.31837761]
[1734078947441,30.0,226.08,226.07,8.31837761]
[1734078948057,8.31837761,226.14,226.07,8.31837761]
[1734078949350,8.31837761,226.15,226.08,8.31837761]
[1734078949548,30.0,226.09,226.04,0.12549]
[1734078949752,30.0,226.09,226.05,0.6633837]
[1734078950348,30.0,226.09,226.06,0.12549]
[1734078951159,20.0,226.18,226.06,0.12549]
[1734078951352,28.31837761,226.18,226.11,8.31837761]
[1734078951552,9.95107761,226.2,226.13,8.31837761]
[1734078952062,8.31837761,226.19,226.12,8.31837761]
[1734078952549,8.31837761,226.18,226.12,8.31837761]
[1734078954157,8.31837761,226.14,226.08,1.6059]
[1734078954356,8.31837761,226.13,226.07,8.31837761]
[1734078955459,8.31837761,226.12,226.06,8.31837761]
[1734078956364,11.0541,226.16,226.06,8.31837761]
[1734078956576,8.31837761,226.12,226.06,8.31837761]
[1734078957747,8.31837761,226.12,226.05,8.31837761]
[1734078958248,11.0526,226.19,226.06,8.31837761]
[1734078958571,8.31837761,226.12,226.06,8.31837761]
[1734078960269,8.31837761,226.12,226.05,8.31837761]
[1734078960469,8.31837761,226.09,226.02,16.12297761]
[1734078964376,8.31837761,226.07,226.0,8.31837761]
[1734078964555,8.31837761,226.06,225.99,8.31837761]
[1734078964752,8.31837761,226.07,226.0,8.31837761]
[1734078964976,8.31837761,226.07,226.01,8.31837761]
[1734078966075,8.31837761,226.06,225.99,8.31837761]
[1734078966370,8.31837761,226.06,225.97,6.1365]
[1734078966579,8.31837761,226.04,225.97,6.1365]
[1734078966874,11.057,226.1,225.97,14.45487761]
[1734078966875,8.31837761,226.03,225.97,14.45487761]
[1734078967252,8.31837761,226.03,225.97,6.1365]
[1734078967451,8.31837761,226.02,225.97,6.1365]
[1734078967672,38.776884,226.09,225.91,6.87054762]
[1734078967673,8.31837761,226.01,225.94,8.31837761]
[1734078968260,8.31837761,226.02,225.95,8.31837761]
[1734078968459,8.31837761,226.01,225.95,8.31837761]
[1734078970571,38.776884,226.09,225.95,8.31837761]
[1734078970572,8.31837761,226.02,225.95,8.31837761]
[1734078970981,8.31837761,226.01,225.94,8.31837761]
[1734078972069,11.0602,226.04,225.92,6.4388]
[1734078972070,8.31837761,226.02,225.95,8.31837761]
[1734078973782,8.31837761,226.01,225.94,8.31837761]
[1734078973982,8.31837761,226.0,225.93,8.31837761]
[1734078974168,8.31837761,226.0,225.92,6.4388]
[1734078974483,8.31837761,226.0,225.93,8.31837761]
[1734078974665,11.0615,226.01,225.95,8.31837761]
[1734078974988,8.31837761,226.04,225.97,8.31837761]
[1734078975183,8.31837761,226.02,225.95,8.31837761]
[1734078975693,8.31837761,226.01,225.95,8.31837761]
[1734078975876,11.0599,226.05,225.96,8.31837761]
[1734078976070,8.31837761,226.03,225.96,8.31837761]
[1734078976781,8.31837761,226.02,225.95,8.31837761]
[1734078976965,8.31837761,226.0,225.94,8.31837761]
[1734078977376,11.0604,226.03,225.92,14.75717761]
[1734078977377,8.31837761,225.99,225.92,14.75717761]
[1734078977893,8.31837761,225.98,225.92,6.4388]
[1734078978092,8.31837761,225.97,225.92,6.4388]
[1734078978479,8.31837761,225.98,225.92,6.4388]
[1734078979296,8.31837761,225.97,225.92,6.4388]
[1734078979485,8.31837761,225.97,225.86,6.5498]
[1734078979680,8.31837761,225.97,225.9,8.31837761]
[1734078981585,8.31837761,225.97,225.91,8.31837761]
[1734078982595,8.31837761,225.99,225.92,8.31837761]
[1734078982777,20.0,226.0,225.95,8.31837761]
[1734078982975,8.31837761,226.01,225.95,8.31837761]
[1734078983184,11.0599,226.04,225.86,7.21379276]
[1734078983185,8.31837761,226.03,225.96,8.31837761]
[1734078983977,8.31837761,226.01,225.93,6.151]
[1734078984280,8.31837761,226.01,225.95,8.31837761]
[1734078984686,8.31837761,226.01,225.94,8.31837761]
[1734078985092,8.31837761,226.03,225.97,8.31837761]
[1734078985291,19.37827761,226.04,225.97,8.31837761]
[1734078985497,8.31837761,226.03,225.97,8.31837761]
[1734078985677,8.31837761,226.02,225.96,8.31837761]
[1734078988479,8.31837761,226.04,225.98,8.31837761]
[1734078991306,8.31837761,226.04,225.97,8.31837761]
[1734078991597,8.31837761,226.03,225.96,8.31837761]
[1734078991817,8.31837761,225.97,225.93,6.151]
[1734078991982,30.0,226.04,225.83,27.4821905]
[1734078991983,8.31837761,225.96,225.88,6.4928]
[1734078992177,8.31837761,225.95,225.89,8.31837761]
[1734078992986,8.31837761,225.96,225.9,8.31837761]
[1734078994212,8.31837761,225.97,225.9,8.31837761]
[1734078994384,19.38127761,225.98,225.91,8.31837761]
[1734078994718,8.31837761,225.93,225.88,6.4928]
[1734078995311,23.776884,225.97,225.88,14.81117761]
[1734078995510,8.31837761,225.94,225.88,6.4928]
[1734078995719,8.31837761,225.93,225.88,6.4928]
[1734078995903,8.31837761,225.94,225.88,6.4928]
[1734078996219,8.31837761,225.94,225.88,14.81117761]
[1734078996517,8.31837761,225.94,225.88,6.4928]
[1734078996880,8.31837761,225.91,225.88,6.4928]
[1734078997081,8.31837761,225.89,225.83,8.31837761]
[1734078997915,8.31837761,225.89,225.82,8.31837761]
[1734078998284,8.31837761,225.88,225.81,1.6526]
[1734078998489,8.31837761,225.88,225.81,9.97097761]
[1734078999221,8.31837761,225.89,225.83,8.31837761]
[1734079001502,8.31837761,225.88,225.81,9.97097761]
[1734079002008,8.31837761,225.89,225.82,8.31837761]
[1734079003291,8.31837761,225.89,225.81,1.6526]
[1734079003292,20.0,225.91,225.83,8.31837761]
[1734079003582,8.31837761,225.94,225.87,8.31837761]
[1734079003987,8.31837761,225.92,225.81,1.6526]
[1734079004187,8.31837761,225.92,225.85,8.31837761]
[1734079005309,8.31837761,225.91,225.84,8.31837761]
[1734079005495,8.31837761,225.9,225.83,8.31837761]
[1734079005896,5.41351729,225.97,225.82,8.31837761]
[1734079005897,8.31837761,225.88,225.82,8.31837761]
[1734079006391,8.31837761,225.89,225.82,8.31837761]
[1734079006586,8.31837761,225.89,225.81,1.6526]
[1734079006790,23.776884,225.96,225.81,9.97097761]
[1734079006791,8.31837761,225.88,225.81,9.97097761]
[1734079006991,8.31837761,225.88,225.82,8.31837761]
[1734079007198,8.31837761,225.89,225.82,8.31837761]
[1734079008602,8.31837761,225.89,225.81,1.6526]
[1734079008807,8.31837761,225.89,225.82,8.31837761]
[1734079009207,8.31837761,225.87,225.81,9.97097761]
[1734079009408,8.31837761,225.87,225.81,1.6526]
[1734079009694,8.31837761,225.85,225.79,6.5317]
[1734079010398,8.31837761,225.84,225.79,6.5317]
[1734079011092,8.31837761,225.85,225.79,14.85007761]
[1734079011298,8.31837761,225.86,225.79,14.85007761]
[1734079011699,8.31837761,225.87,225.81,8.31837761]
[1734079011898,8.31837761,225.89,225.82,8.31837761]
[1734079013517,30.0,225.83,225.82,8.31837761]
[1734079014304,8.31837761,225.89,225.82,8.31837761]
[1734079014501,8.31837761,225.89,225.83,8.31837761]
[1734079014706,8.31837761,225.92,225.85,8.31837761]
[1734079015300,8.31837761,225.91,225.85,8.31837761]
[1734079016101,23.776884,225.96,225.85,8.31837761]
[1734079016102,8.31837761,225.92,225.85,8.31837761]
[1734079017322,8.31837761,225.91,225.84,8.31837761]
[1734079017720,30.0,225.85,225.84,8.31837761]
[1734079019834,30.0,225.85,225.83,8.31837761]
[1734079020403,30.0,225.85,225.82,8.31837761]
[1734079022627,30.0,225.85,225.83,8.31837761]
[1734079022835,30.0,225.85,225.79,6.5317]
[1734079023017,30.0,225.85,225.82,8.31837761]
[1734079023330,8.31837761,225.89,225.82,8.31837761]
[1734079023537,8.31837761,225.87,225.79,6.5317]
[1734079023833,8.31837761,225.86,225.79,14.85007761]
[1734079024221,33.27351044,225.94,225.8,8.31837761]
[1734079024222,8.31837761,225.87,225.8,8.31837761]
[1734079024425,8.31837761,225.88,225.81,8.31837761]
[1734079024816,20.0,225.92,225.82,8.31837761]
[1734079025005,20.0,225.92,225.84,8.31837761]
[1734079025210,30.0,225.85,225.84,8.31837761]
[1734079025435,30.0,225.85,225.79,6.5317]
[1734079025734,30.0,225.85,225.83,8.31837761]
[1734079026312,8.31837761,225.9,225.83,8.31837761]
[1734079027130,8.31837761,225.89,225.79,6.5317]
[1734079027432,8.31837761,225.87,225.81,8.31837761]
[1734079028009,8.31837761,225.87,225.79,6.5317]
[1734079028211,8.31837761,225.85,225.79,6.5317]
[1734079028417,30.0,225.83,225.79,6.5317]
[1734079029024,38.31837761,225.83,225.79,6.5317]
[1734079029344,8.31837761,225.82,225.76,1.5925]
[1734079029517,30.0,225.8,225.76,1.5925]
[1734079030430,8.31837761,225.78,225.74,6.4778]
[1734079030735,30.0,225.77,225.74,6.4778]
[1734079031324,38.31837761,225.77,225.71,1.5653]
[1734079031730,1.5212,225.83,225.73,8.31837761]
[1734079031942,20.0,225.81,225.76,8.31837761]
[1734079032347,8.31837761,225.8,225.71,1.5653]
[1734079032522,8.31837761,225.8,225.74,8.31837761]
[1734079034536,8.31837761,225.82,225.76,8.31837761]
[1734079035034,8.31837761,225.83,225.76,8.31837761]
[1734079035211,8.31837761,225.86,225.79,8.31837761]
[1734079035636,8.31837761,225.85,225.73,6.5885]
[1734079035829,8.31837761,225.86,225.79,8.31837761]
[1734079036446,8.31837761,225.86,225.73,6.5885]
[1734079036447,8.31837761,225.87,225.8,8.31837761]
[1734079036622,8.31837761,225.86,225.79,8.31837761]
[1734079038321,8.31837761,225.83,225.77,8.31837761]
[1734079038536,8.31837761,225.83,225.73,6.5885]
[1734079038822,8.31837761,225.81,225.74,8.31837761]
[1734079040040,8.31837761,225.83,225.76,8.31837761]
[1734079040340,8.31837761,225.83,225.73,6.5885]
[1734079040341,28.31837761,225.82,225.73,6.5885]
[1734079040643,8.31837761,225.81,225.75,8.31837761]
[1734079041842,28.31837761,225.82,225.76,8.31837761]
[1734079043622,28.31837761,225.82,225.75,8.31837761]
[1734079044517,8.31837761,225.81,225.73,6.5885]
[1734079044744,39.38927761,225.82,225.75,8.31837761]
[1734079046233,19.39007761,225.8,225.73,14.90687761]
[1734079046423,8.31837761,225.79,225.73,6.5885]
[1734079046920,8.31837761,225.78,225.71,8.31837761]
[1734079047236,8.31837761,225.76,225.7,8.31837761]
[1734079047419,8.31837761,225.77,225.71,8.31837761]
[1734079048446,8.31837761,225.76,225.7,8.31837761]
[1734079049842,8.31837761,225.78,225.71,8.31837761]
[1734079051423,8.31837761,225.78,225.72,8.31837761]
[1734079052038,8.31837761,225.78,225.71,8.31837761]
[1734079054037,8.31837761,225.77,225.71,8.31837761]
[1734079055226,11.07,225.84,225.76,8.31837761]
[1734079055435,19.38837761,225.84,225.78,8.31837761]
[1734079055744,19.38837761,225.84,225.79,8.31837761]
[1734079055745,11.07,225.84,225.79,8.31837761]
[1734079056938,11.07,225.84,225.78,8.31837761]
[1734079057139,11.07,225.84,225.79,8.31837761]
[1734079057341,11.07,225.84,225.72,33.27351044]
[1734079057342,11.07,225.84,225.78,8.31837761]
[1734079059429,19.38837761,225.84,225.78,8.31837761]
[1734079060341,19.38837761,225.84,225.77,8.31837761]
[1734079060544,8.31837761,225.83,225.68,11.74218251]
[1734079060746,8.31837761,225.83,225.76,8.31837761]
[1734079061350,8.31837761,225.81,225.74,8.31837761]
[1734079062156,8.31837761,225.81,225.75,8.31837761]
[1734079062347,11.07,225.84,225.78,8.31837761]
[1734079063247,19.38837761,225.84,225.78,8.31837761]
[1734079065947,1.5518,225.86,225.8,8.31837761]
[1734079066143,20.0,225.87,225.75,6.1197]
[1734079066144,8.31837761,225.87,225.81,8.31837761]
[1734079066533,19.38627761,225.88,225.82,8.31837761]
[1734079068245,8.31837761,225.87,225.75,6.78395645]
[1734079068654,11.0679,225.88,225.75,6.1197]
[1734079068655,8.31837761,225.85,225.75,6.1197]
[1734079068976,8.31837761,225.85,225.78,8.31837761]
[1734079069463,8.31837761,225.83,225.75,6.1197]
[1734079069667,8.31837761,225.83,225.76,8.31837761]
[1734079069849,8.31837761,225.81,225.75,14.43807761]
[1734079073784,8.31837761,225.82,225.76,8.31837761]
[1734079075067,8.31837761,225.81,225.75,14.43807761]
[1734079075446,31.0696,225.85,225.77,8.31837761]
[1734079075646,8.31837761,225.83,225.77,8.31837761]
[1734079076658,8.31837761,225.83,225.76,8.31837761]
[1734079077872,31.0696,225.85,225.77,8.31837761]
[1734079078049,8.31837761,225.83,225.77,8.31837761]
[1734079079052,8.31837761,225.83,225.76,8.31837761]
[1734079080272,8.31837761,225.82,225.75,14.43807761]
[1734079080479,8.31837761,225.8,225.75,6.1197]
[1734079081480,8.31837761,225.77,225.7,14.66727761]
[1734079081685,8.31837761,225.76,225.7,14.66727761]
[1734079082049,11.0708,225.82,225.7,14.66727761]
[1734079082050,8.31837761,225.78,225.71,8.31837761]
[1734079082276,11.0708,225.82,225.72,8.31837761]
[1734079082475,8.31837761,225.8,225.73,8.31837761]
[1734079082679,8.31837761,225.78,225.72,8.31837761]
[1734079084277,8.31837761,225.77,225.71,8.31837761]
[1734079085963,8.31837761,225.79,225.72,8.31837761]
[1734079086168,8.31837761,225.8,225.74,8.31837761]
[1734079087053,8.31837761,225.81,225.74,8.31837761]
[1734079087563,8.31837761,225.82,225.75,8.31837761]
[1734079087764,8.31837761,225.84,225.78,8.31837761]
[1734079088857,1.6076,225.89,225.8,8.31837761]
[1734079089057,19.38547761,225.9,225.83,8.31837761]
[1734079090483,8.31837761,225.91,225.85,8.31837761]
[1734079090782,8.31837761,225.91,225.84,8.31837761]
[1734079091576,8.31837761,225.9,225.83,8.31837761]
[1734079092779,8.31837761,225.91,225.84,8.31837761]
[1734079094385,8.31837761,225.92,225.85,8.31837761]
[1734079095181,8.31837761,225.91,225.84,8.31837761]
[1734079095582,8.31837761,225.92,225.85,8.31837761]
[1734079095779,8.31837761,225.95,225.89,8.31837761]
[1734079095985,5.41351729,225.97,225.89,8.31837761]
[1734079096179,8.31837761,225.97,225.9,8.31837761]
[1734079096890,8.31837761,225.96,225.9,8.31837761]
[1734079097561,1.6557,226.0,225.9,8.31837761]
[1734079097769,5.41351729,226.03,225.83,40.56326707]
[1734079097770,8.31837761,225.99,225.92,8.31837761]
[1734079097968,19.37967761,226.02,225.95,8.31837761]
[1734079098668,8.31837761,226.01,225.95,8.31837761]
[1734079100191,8.31837761,226.0,225.94,8.31837761]
[1734079101089,13.7318949,226.03,225.96,8.31837761]
[1734079101397,8.31837761,226.03,225.96,8.31837761]
[1734079101974,8.31837761,226.01,225.94,8.31837761]
[1734079102576,8.31837761,226.0,225.94,8.31837761]
[1734079102891,8.31837761,225.99,225.92,6.3519]
[1734079103097,8.31837761,225.99,225.92,14.67027761]
[1734079103466,8.31837761,225.99,225.92,6.3519]
[1734079103673,8.31837761,225.99,225.92,14.67027761]
[1734079105772,8.31837761,225.99,225.93,8.31837761]
[1734079109306,8.31837761,225.99,225.92,14.67027761]
[1734079110393,20.0,226.0,225.93,8.31837761]
[1734079110592,28.31837761,226.0,225.93,8.31837761]
[1734079115719,20.0,226.04,225.96,8.31837761]
[1734079115913,8.31837761,226.05,225.98,8.31837761]
[1734079116414,19.37687761,226.07,226.0,8.31837761]
[1734079116921,8.31837761,226.06,225.99,8.31837761]
[1734079117122,8.31837761,226.05,225.98,8.31837761]
[1734079119224,8.31837761,226.02,225.93,0.66363916]
[1734079119423,8.31837761,225.98,225.92,14.67027761]
[1734079119725,8.31837761,225.97,225.92,6.3519]
[1734079119921,8.31837761,225.98,225.92,6.3519]
[1734079121631,8.31837761,225.97,225.92,6.3519]
[1734079124418,8.31837761,225.98,225.92,6.3519]
[1734079126109,8.31837761,225.97,225.92,6.3519]
[1734079126305,8.31837761,225.98,225.92,6.3519]
[1734079126530,8.31837761,225.98,225.92,14.67027761]
[1734079126725,35.41351729,226.06,225.92,14.67027761]
[1734079126726,8.31837761,226.02,225.95,8.31837761]
[1734079126928,8.31837761,226.02,225.92,6.3519]
[1734079126929,8.31837761,226.02,225.96,8.31837761]
[1734079127130,19.37827761,226.05,225.98,8.31837761]
[1734079127335,19.37827761,226.05,225.99,8.31837761]
[1734079127630,30.0,226.0,225.98,8.31837761]
[1734079128238,19.37827761,226.05,225.98,8.31837761]
[1734079129908,8.31837761,226.06,226.0,8.31837761]
[1734079130423,8.31837761,226.07,226.0,8.31837761]
[1734079134039,8.31837761,226.06,225.99,8.31837761]
[1734079137738,11.0579,226.09,226.0,7.27184817]
[1734079138040,8.31837761,226.11,226.04,8.31837761]
[1734079138214,8.31837761,226.1,226.04,8.31837761]
[1734079138542,8.31837761,226.1,226.03,8.31837761]
[1734079138838,8.31837761,226.11,226.03,8.31837761]
[1734079140237,8.31837761,226.11,226.04,8.31837761]
[1734079140815,8.31837761,226.12,226.05,8.31837761]
[1734079141020,8.31837761,226.13,226.07,8.31837761]
[1734079142038,8.31837761,226.14,226.08,8.31837761]
[1734079142430,8.31837761,226.15,226.09,8.31837761]
[1734079143043,8.31837761,226.14,226.07,8.31837761]
[1734079143928,20.0,226.15,226.08,6.5828]
[1734079144121,8.31837761,226.14,226.08,14.90117761]
[1734079144831,8.31837761,226.15,226.09,8.31837761]
[1734079145024,19.37267761,226.16,226.09,8.31837761]
[1734079145222,8.31837761,226.1,226.08,6.5828]
[1734079145532,23.776884,226.15,226.03,6.5172]
[1734079145533,8.31837761,226.09,226.03,6.5172]
[1734079145737,8.31837761,226.08,226.03,6.5172]
[1734079146731,8.31837761,226.09,226.03,14.83557761]
[1734079146932,8.31837761,226.13,226.06,8.31837761]
[1734079147128,8.31837761,226.13,226.07,8.31837761]
[1734079147734,8.31837761,226.13,226.03,7.18071351]
[1734079147735,8.31837761,226.12,226.05,8.31837761]
[1734079150536,8.31837761,226.12,226.06,8.31837761]
[1734079151537,8.31837761,226.12,226.05,8.31837761]
[1734079153442,8.31837761,226.12,226.06,8.31837761]
[1734079156249,8.31837761,226.12,226.05,8.31837761]
[1734079157832,8.31837761,226.08,226.03,6.5172]
[1734079158039,8.31837761,226.07,226.03,6.5172]
[1734079158238,8.31837761,226.06,226.01,1.5341]
[1734079158637,8.31837761,226.06,226.0,8.31837761]
[1734079159078,8.31837761,226.07,226.01,8.31837761]
[1734079160230,11.0565,226.11,226.04,8.31837761]
[1734079160549,21.6382,226.14,226.06,8.31837761]
[1734079160725,8.31837761,226.13,226.06,8.31837761]
[1734079161250,8.31837761,226.14,226.07,8.31837761]
[1734079161459,8.31837761,226.14,226.08,8.31837761]
[1734079162452,8.31837761,226.14,226.07,8.31837761]
[1734079164365,8.31837761,226.14,226.08,8.31837761]
[1734079166548,8.31837761,226.11,226.03,0.12549]
[1734079166740,8.31837761,226.09,226.02,8.31837761]
[1734079168864,8.31837761,226.07,226.01,8.31837761]
[1734079170045,8.31837761,226.07,226.0,8.31837761]
[1734079170235,8.31837761,226.06,225.98,6.6179]
[1734079170440,8.31837761,226.03,225.98,6.6179]
[1734079172258,23.776884,226.1,225.98,6.6179]
[1734079172439,8.31837761,226.03,225.98,6.6179]
[1734079176045,8.31837761,226.03,225.96,9.89507761]
[1734079176240,8.31837761,226.02,225.96,1.5767]
[1734079176445,8.31837761,226.01,225.93,6.0272]
[1734079176645,8.31837761,226.02,225.95,8.31837761]
[1734079177068,8.31837761,226.03,225.96,8.31837761]
[1734079177561,11.0575,226.09,225.96,8.31837761]
[1734079177562,23.776884,226.08,225.96,8.31837761]
[1734079177764,11.0585,226.07,225.98,8.31837761]
[1734079177974,8.31837761,226.06,225.99,8.31837761]
[1734079178446,8.31837761,226.05,225.99,8.31837761]
[1734079179766,8.31837761,226.06,225.99,8.31837761]
[1734079181258,8.31837761,226.04,225.98,8.31837761]
[1734079182359,8.31837761,226.05,225.99,8.31837761]
[1734079182869,11.0585,226.07,226.02,8.31837761]
[1734079183447,11.0585,226.07,226.01,8.31837761]
[1734079183448,19.37687761,226.07,226.01,8.31837761]
[1734079184164,8.31837761,226.06,226.0,8.31837761]
[1734079184363,8.31837761,226.06,225.96,0.66357639]
[1734079184364,8.31837761,226.06,225.99,8.31837761]
[1734079186458,8.31837761,226.04,225.97,8.31837761]
[1734079186653,8.31837761,226.03,225.96,8.31837761]
[1734079186854,8.31837761,226.03,225.97,8.31837761]
[1734079187670,8.31837761,226.04,225.98,8.31837761]
[1734079190283,8.31837761,226.01,225.95,8.31837761]
[1734079190455,8.31837761,226.0,225.93,6.0272]
[1734079190655,44.33301044,226.05,225.93,14.34557761]
[1734079190656,8.31837761,225.99,225.93,14.34557761]
[1734079191564,8.31837761,226.0,225.93,14.34557761]
[1734079191774,8.31837761,226.0,225.94,8.31837761]
[1734079198886,8.31837761,226.0,225.93,6.0272]
[1734079199071,11.0624,225.99,225.88,6.0909]
[1734079199273,8.31837761,225.95,225.88,6.0909]
[1734079199487,8.31837761,225.94,225.88,8.31837761]
[1734079199970,8.31837761,225.93,225.87,8.31837761]
[1734079200170,8.31837761,225.94,225.88,8.31837761]
[1734079200573,8.31837761,225.95,225.89,8.31837761]
[1734079200987,8.31837761,225.95,225.86,1.5844]
[1734079201173,8.31837761,225.95,225.89,8.31837761]
[1734079201884,11.0624,225.99,225.89,8.31837761]
[1734079201885,8.31837761,225.96,225.89,8.31837761]
[1734079202471,23.776884,225.98,225.92,8.31837761]
[1734079202688,19.38077761,225.99,225.93,8.31837761]
[1734079204174,1.5522,226.04,225.94,8.31837761]
[1734079204175,8.31837761,226.0,225.94,8.31837761]
[1734079204382,8.31837761,226.02,225.96,8.31837761]
[1734079204707,8.31837761,226.03,225.97,8.31837761]
[1734079204903,11.0587,226.07,226.0,8.31837761]
[1734079205113,19.37707761,226.07,226.01,8.31837761]
[1734079206778,23.776884,226.06,226.0,8.31837761]
[1734079207703,32.09526161,226.06,226.0,8.31837761]
[1734079210669,32.09526161,226.06,225.99,8.31837761]
[1734079211195,23.776884,226.06,225.99,8.31837761]
[1734079211385,32.09526161,226.06,225.99,8.31837761]
[1734079212777,8.31837761,226.05,225.99,8.31837761]
[1734079213179,8.31837761,226.01,225.95,0.66365396]
[1734079213386,8.31837761,226.0,225.94,8.31837761]
[1734079213793,8.31837761,225.99,225.91,6.2593]
[1734079214087,8.31837761,225.98,225.92,8.31837761]
[1734079214496,8.31837761,225.99,225.93,8.31837761]
[1734079215185,8.31837761,225.99,225.91,6.92309379]
[1734079215385,8.31837761,225.99,225.93,8.31837761]
[1734079215709,8.31837761,226.0,225.93,8.31837761]